[Event "2nd Asian Nations Team Cup U14 2019"]
[Site "Shenzhen"]
[Date "2019.12.25"]
[Round "8.18"]
[White "Foo, Jiu Yarng Clarance"]
[Black "Wei, Jianzhou"]
[Result "0-1"]
[ECO "D36"]
[WhiteElo "1654"]
[BlackElo "1755"]
[Annotator "NA RC"]
[PlyCount "68"]
[EventDate "2019.12.19"]
[EventType "team-tourn"]
[EventCountry "CHN"]
[SourceTitle "playchess.com"]
[Source "ChessBase"]
[SourceQuality "1"]
[WhiteTeam "Malaysia"]
[BlackTeam "China"]
[WhiteTeamCountry "MAS"]
[BlackTeamCountry "CHN"]
[TimeControl "5400+30"]

1. d4 {[%emt 0:00:00]} d5 {[%emt 0:00:00]} 2. c4 {[%emt 0:00:00]} e6 {[%emt 0:00:00]} 3. Nc3 {[%emt 0:00:00]} c6 {[%emt 0:00:00]} 4. cxd5 {[%emt 0:00:32]} exd5 {[%emt 0:00:19]} 5. Nf3 {[%emt 0:00:17]} Nf6 {[%emt 0:00:09]} 6. Bg5 {[%emt 0:00:43]} Be7 {[%emt 0:00:43]} 7. e3 {[%emt 0:00:35]} O-O {[%emt 0:00:32]} 8. h3 {[%emt 0:00:57]} Nbd7 {[%emt 0:00:58]} 9. Bd3 {[%emt 0:00:13]} Re8 {[%emt 0:02:53]} 10. O-O {[%emt 0:00:27]} Nf8 {[%emt 0:02:46]} 11. Qc2 {[%emt 0:00:25]} Ng6 {[%emt 0:04:59]} 12. a3 {[%emt 0:02:57]} Ne4 {[%emt 0:04:24]} 13. Bf4 {[%emt 0:09:20]} Nxf4 {[%emt 0:06:35]} 14. exf4 {[%emt 0:00:06]} f5 {[%emt 0:03:27]} 15. b4 {[%emt 0:01:14]} Bf6 {[%emt 0:05:09]} 16. Na4 {[%emt 0:01:42]} Qd6 {[%emt 0:04:39]} 17. g3 {[%emt 0:12:59]} Re7 {[%emt 0:06:28]} 18. Nc5 {[%emt 0:05:37]} Rc7 {[%emt 0:05:44]} 19. Rac1 {[%emt 0:02:12]} b6 {[%emt 0:04:37]} 20. Nb3 {[%emt 0:01:32]} Bb7 {[%emt 0:01:16]} 21. Kh2 {[%emt 0:24:47]} Rac8 {[%emt 0:00:41]} 22. Bxe4 {[%emt 0:03:11]} dxe4 {[%emt 0:02:17]} 23. Ne5 {[%emt 0:01:05]} Qd5 {[%emt 0:01:00]} 24. Rfd1 {[%emt 0:01:54]} Ba6 {[%emt 0:04:02]} 25. Qb2 {[%emt 0:07:55]} Bxe5 {[%emt 0:01:27]} 26. fxe5 {[%emt 0:00:58]} f4 {[%emt 0:01:40]} 27. Rc3 {[%emt 0:07:29]} Rf8 {[%emt 0:03:04]} 28. g4 {[%emt 0:12:00]} e3 {[%emt 0:03:25]} 29. fxe3 {[%emt 0:01:47]} Qf3 {[%emt 0:00:05]} 30. Qd2 {[%emt 0:01:35]} Qg3+ {[%emt 0:00:12]} 31. Kh1 {[%emt 0:00:27]} Qxh3+ {[%emt 0:00:06]} 32. Qh2 {[%emt 0:00:22]} Qf3+ {[%emt 0:00:05]} 33. Qg2 {[%emt 0:00:38]} Qxd1+ {[%emt 0:00:09]} 34. Kh2 {[%emt 0:00:04]} Qe1 {[%emt 0:01:46]} 0-1

[Event "2nd Asian Nations Team Cup U14 2019"]
[Site "Shenzhen"]
[Date "2019.12.25"]
[Round "8.19"]
[White "Wang, Yuehan"]
[Black "Lee, Ryan"]
[Result "1-0"]
[ECO "B35"]
[WhiteElo "1724"]
[BlackElo "1615"]
[Annotator "NA RC"]
[PlyCount "131"]
[EventDate "2019.12.19"]
[EventType "team-tourn"]
[EventCountry "CHN"]
[SourceTitle "playchess.com"]
[Source "ChessBase"]
[SourceQuality "1"]
[WhiteTeam "China"]
[BlackTeam "Malaysia"]
[WhiteTeamCountry "CHN"]
[BlackTeamCountry "MAS"]
[TimeControl "5400+30"]

1. e4 {[%emt 0:00:00]} c5 {[%emt 0:00:00]} 2. Nf3 {[%emt 0:00:00]} Nc6 {[%emt 0:00:00]} 3. d4 {[%emt 0:00:00]} cxd4 {[%emt 0:00:00]} 4. Nxd4 {[%emt 0:00:00]} g6 {[%emt 0:00:00]} 5. Nc3 {[%emt 0:00:00]} Bg7 {[%emt 0:00:00]} 6. Be3 {[%emt 0:00:04]} Nf6 {[%emt 0:00:00]} 7. f3 {[%emt 0:00:15]} O-O {[%emt 0:00:00]} 8. Bc4 {[%emt 0:02:34]} Qb6 {[%emt 0:01:41]} 9. Bb3 {[%emt 0:03:01]} Nxe4 {[%emt 0:02:39]} 10. Nd5 {[%emt 0:00:18]} Qa5+ {[%emt 0:02:08]} 11. c3 {[%emt 0:00:15]} Nc5 {[%emt 0:04:49]} 12. Nxc6 {[%emt 0:01:05]} dxc6 {[%emt 0:00:35]} 13. Nxe7+ {[%emt 0:03:31]} Kh8 {[%emt 0:00:04]} 14. Nxc8 {[%emt 0:00:13]} Raxc8 {[%emt 0:00:40]} 15. O-O {[%emt 0:00:19]} Rcd8 {[%emt 0:02:06]} 16. Qc2 {[%emt 0:00:34]} Qb5 {[%emt 0:16:15]} 17. Rad1 {[%emt 0:00:45]} Rde8 {[%emt 0:02:09]} 18. Rfe1 {[%emt 0:01:33]} a5 {[%emt 0:01:39]} 19. c4 {[%emt 0:02:03]} Qb4 {[%emt 0:02:13]} 20. Bd2 {[%emt 0:00:11]} Qb6 {[%emt 0:00:42]} 21. Kh1 {[%emt 0:00:30]} Kg8 {[%emt 0:09:49]} 22. Bc3 {[%emt 0:00:40]} a4 {[%emt 0:09:57]} 23. Bxg7 {[%emt 0:00:38]} Kxg7 {[%emt 0:03:23]} 24. Qc3+ {[%emt 0:00:06]} Kg8 {[%emt 0:01:30]} 25. Bc2 {[%emt 0:00:06]} Qc7 {[%emt 0:05:29]} 26. Qf6 {[%emt 0:00:48]} Re6 {[%emt 0:04:19]} 27. Rxe6 {[%emt 0:00:17]} fxe6 {[%emt 0:01:00]} 28. Qg5 {[%emt 0:00:34]} b6 {[%emt 0:00:42]} 29. h4 {[%emt 0:00:32]} Qf4 {[%emt 0:06:29]} 30. b3 {[%emt 0:06:06]} Qxg5 {[%emt 0:02:57]} 31. hxg5 {[%emt 0:00:06]} axb3 {[%emt 0:00:10]} 32. axb3 {[%emt 0:00:04]} Rc8 {[%emt 0:02:30]} 33. Kh2 {[%emt 0:00:46]} Kf8 {[%emt 0:00:33]} 34. Kg3 {[%emt 0:00:09]} Ke7 {[%emt 0:00:08]} 35. Kf4 {[%emt 0:00:06]} Rd8 {[%emt 0:04:02]} 36. Rh1 {[%emt 0:00:05]} Rh8 {[%emt 0:01:08]} 37. Bxg6 {[%emt 0:00:27]} Nxb3 {[%emt 0:00:22]} 38. Rxh7+ {[%emt 0:00:06]} Rxh7 {[%emt 0:00:02]} 39. Bxh7 {[%emt 0:00:04]} b5 {[%emt 0:03:43]} 40. cxb5 {[%emt 0:00:11]} cxb5 {[%emt 0:00:04]} 41. Ke5 {[%emt 0:00:52]} Nc5 {[%emt 0:00:09]} 42. Kd4 {[%emt 0:00:30]} Nd7 {[%emt 0:00:18]} 43. f4 {[%emt 0:00:17]} Kf7 {[%emt 0:02:25]} 44. g3 {[%emt 0:01:10]} Kg7 {[%emt 0:00:28]} 45. Bd3 {[%emt 0:00:04]} b4 {[%emt 0:04:25]} 46. Kc4 {[%emt 0:00:27]} e5 {[%emt 0:03:21]} 47. f5 {[%emt 0:00:33]} b3 {[%emt 0:00:25]} 48. Kxb3 {[%emt 0:00:23]} e4 {[%emt 0:00:04]} 49. Be2 {[%emt 0:00:14]} Ne5 {[%emt 0:00:35]} 50. Kc3 {[%emt 0:00:18]} Nf7 {[%emt 0:01:29]} 51. g6 {[%emt 0:00:05]} Nh6 {[%emt 0:00:45]} 52. g4 {[%emt 0:00:05]} Ng8 {[%emt 0:00:31]} 53. g5 {[%emt 0:00:27]} Ne7 {[%emt 0:00:32]} 54. f6+ {[%emt 0:00:12]} Kxg6 {[%emt 0:00:01]} 55. fxe7 {[%emt 0:00:03]} Kf7 {[%emt 0:00:05]} 56. Kd4 {[%emt 0:00:04]} Kxe7 {[%emt 0:00:04]} 57. Kxe4 {[%emt 0:00:03]} Kf8 {[%emt 0:00:24]} 58. Kf5 {[%emt 0:00:06]} Kf7 {[%emt 0:00:27]} 59. g6+ {[%emt 0:00:10]} Kg7 {[%emt 0:00:10]} 60. Kg5 {[%emt 0:00:04]} Kg8 {[%emt 0:00:29]} 61. Kf6 {[%emt 0:00:07]} Kf8 {[%emt 0:00:07]} 62. Bb5 {[%emt 0:00:06]} Kg8 {[%emt 0:00:10]} 63. g7 {[%emt 0:00:04]} Kh7 {[%emt 0:00:12]} 64. Bc4 {[%emt 0:00:03]} Kh6 {[%emt 0:00:06]} 65. g8=Q {[%emt 0:00:06]} Kh5 {[%emt 0:00:03]} 66. Qg5# {[%emt 0:00:06]} 1-0

[Event "2nd Asian Nations Team Cup U14 2019"]
[Site "Shenzhen"]
[Date "2019.12.25"]
[Round "8.20"]
[White "Foo, Jing Er Claire"]
[Black "Zhao, Yunqing"]
[Result "1/2-1/2"]
[ECO "E12"]
[WhiteElo "1546"]
[BlackElo "1542"]
[Annotator "NA RC"]
[PlyCount "158"]
[EventDate "2019.12.19"]
[EventType "team-tourn"]
[EventCountry "CHN"]
[SourceTitle "playchess.com"]
[Source "ChessBase"]
[SourceQuality "1"]
[WhiteTeam "Malaysia"]
[BlackTeam "China"]
[WhiteTeamCountry "MAS"]
[BlackTeamCountry "CHN"]
[TimeControl "5400+30"]

1. d4 {[%emt 0:00:00]} Nf6 {[%emt 0:00:00]} 2. c4 {[%emt 0:00:00]} e6 {[%emt 0:00:00]} 3. Nf3 {[%emt 0:00:00]} b6 {[%emt 0:00:00]} 4. a3 {[%emt 0:00:01]} Bb7 {[%emt 0:00:00]} 5. Nc3 {[%emt 0:00:16]} Ne4 {[%emt 0:00:00]} 6. d5 {[%emt 0:11:47]} Nxc3 {[%emt 0:00:00]} 7. bxc3 {[%emt 0:00:11]} Na6 {[%emt 0:00:00]} 8. e4 {[%emt 0:05:28]} Be7 {[%emt 0:03:01]} 9. Bd3 {[%emt 0:06:24]} O-O {[%emt 0:00:47]} 10. O-O {[%emt 0:00:14]} d6 {[%emt 0:00:53]} 11. Nd4 {[%emt 0:03:11]} Nc5 {[%emt 0:03:22]} 12. Re1 {[%emt 0:05:31]} Bf6 {[%emt 0:02:53]} 13. Be3 {[%emt 0:06:04]} Re8 {[%emt 0:02:53]} 14. Rc1 {[%emt 0:01:32]} Qd7 {[%emt 0:01:11]} 15. Qc2 {[%emt 0:06:59]} a5 {[%emt 0:01:24]} 16. Rcd1 {[%emt 0:02:58]} g6 {[%emt 0:01:44]} 17. Nf3 {[%emt 0:08:40]} Na6 {[%emt 0:04:29]} 18. h4 {[%emt 0:02:31]} h5 {[%emt 0:05:52]} 19. Bg5 {[%emt 0:01:18]} Bxg5 {[%emt 0:00:46]} 20. Nxg5 {[%emt 0:00:15]} e5 {[%emt 0:00:08]} 21. Rf1 {[%emt 0:03:03]} Nc5 {[%emt 0:12:42]} 22. Be2 {[%emt 0:04:37]} Qa4 {[%emt 0:00:47]} 23. Qb2 {[%emt 0:09:04]} f6 {[%emt 0:03:32]} 24. Nf3 {[%emt 0:04:23]} Qb3 {[%emt 0:03:49]} 25. Qxb3 {[%emt 0:00:48]} Nxb3 {[%emt 0:00:05]} 26. Nd2 {[%emt 0:00:58]} Nc5 {[%emt 0:02:36]} 27. f3 {[%emt 0:02:34]} g5 {[%emt 0:02:36]} 28. hxg5 {[%emt 0:01:30]} fxg5 {[%emt 0:00:06]} 29. Rfe1 {[%emt 0:00:41]} h4 {[%emt 0:01:46]} 30. Nf1 {[%emt 0:01:17]} Kg7 {[%emt 0:00:26]} 31. Ne3 {[%emt 0:00:47]} a4 {[%emt 0:01:57]} 32. Bd3 {[%emt 0:01:52]} Ra5 {[%emt 0:00:33]} 33. Bc2 {[%emt 0:01:37]} Ba6 {[%emt 0:00:40]} 34. Rb1 {[%emt 0:00:51]} Rh8 {[%emt 0:02:01]} 35. Kf2 {[%emt 0:03:46]} Bc8 {[%emt 0:00:51]} 36. Rh1 {[%emt 0:00:33]} Bd7 {[%emt 0:00:47]} 37. Rb4 {[%emt 0:01:41]} Raa8 {[%emt 0:00:26]} 38. Ke2 {[%emt 0:00:58]} Rh7 {[%emt 0:01:14]} 39. Rbb1 {[%emt 0:00:22]} Rah8 {[%emt 0:00:39]} 40. Rh2 {[%emt 0:02:04]} Kg6 {[%emt 0:02:16]} 41. Rbh1 {[%emt 0:01:16]} Nb7 {[%emt 0:01:45]} 42. Nf5 {[%emt 0:00:50]} Na5 {[%emt 0:01:33]} 43. Bd3 {[%emt 0:01:11]} Bc8 {[%emt 0:02:53]} 44. Ne3 {[%emt 0:00:19]} Ba6 {[%emt 0:00:49]} 45. Kf2 {[%emt 0:00:42]} Rf7 {[%emt 0:01:29]} 46. Ke2 {[%emt 0:00:09]} Rhf8 {[%emt 0:00:51]} 47. Rb1 {[%emt 0:00:49]} Bc8 {[%emt 0:00:37]} 48. Nf5 {[%emt 0:00:43]} Bd7 {[%emt 0:03:32]} 49. Rhh1 {[%emt 0:00:22]} Rh7 {[%emt 0:01:35]} 50. Rh2 {[%emt 0:00:01]} Rg8 {[%emt 0:01:05]} 51. Rbh1 {[%emt 0:00:19]} Bxf5 {[%emt 0:01:15]} 52. exf5+ {[%emt 0:00:06]} Kf6 {[%emt 0:00:03]} 53. g4 {[%emt 0:01:28]} Ra8 {[%emt 0:00:42]} 54. Rb1 {[%emt 0:00:11]} Rhh8 {[%emt 0:00:40]} 55. Kf2 {[%emt 0:00:28]} Rhc8 {[%emt 0:01:01]} 56. Rhh1 {[%emt 0:00:38]} Nb3 {[%emt 0:00:43]} 57. Rhd1 {[%emt 0:00:53]} Ra5 {[%emt 0:01:04]} 58. Bc2 {[%emt 0:00:23]} Nc5 {[%emt 0:00:13]} 59. Rb4 {[%emt 0:00:35]} Rca8 {[%emt 0:01:24]} 60. Rdb1 {[%emt 0:00:25]} R5a7 {[%emt 0:01:54]} 61. Rd1 {[%emt 0:00:17]} Re8 {[%emt 0:00:25]} 62. Re1 {[%emt 0:00:38]} Rc8 {[%emt 0:00:52]} 63. Rd1 {[%emt 0:00:11]} Ra6 {[%emt 0:00:06]} 64. Rdb1 {[%emt 0:00:20]} Ke7 {[%emt 0:01:03]} 65. Kg2 {[%emt 0:01:27]} Rf8 {[%emt 0:01:12]} 66. Kf2 {[%emt 0:00:26]} Rf6 {[%emt 0:00:32]} 67. Rd1 {[%emt 0:00:24]} Kd7 {[%emt 0:00:24]} 68. Rdb1 {[%emt 0:00:01]} Rf8 {[%emt 0:00:57]} 69. R4b2 {[%emt 0:01:03]} Kc8 {[%emt 0:00:37]} 70. Ke2 {[%emt 0:00:31]} Re8 {[%emt 0:00:54]} 71. Be4 {[%emt 0:00:31]} Nxe4 {[%emt 0:01:55]} 72. fxe4 {[%emt 0:00:01]} Rf8 {[%emt 0:00:12]} 73. Kf3 {[%emt 0:00:36]} Kd7 {[%emt 0:01:37]} 74. Rb5 {[%emt 0:01:01]} Raa8 {[%emt 0:00:58]} 75. Kg2 {[%emt 0:00:11]} Ke7 {[%emt 0:00:42]} 76. Kh3 {[%emt 0:00:08]} Kf6 {[%emt 0:00:17]} 77. R1b2 {[%emt 0:00:12]} Ra6 {[%emt 0:00:24]} 78. Rb1 {[%emt 0:00:04]} Rfa8 {[%emt 0:00:07]} 79. R1b2 {[%emt 0:00:20]} Ra5 {[%emt 0:00:31]} 1/2-1/2

[Event "2nd Asian Nations Team Cup U14 2019"]
[Site "Shenzhen"]
[Date "2019.12.25"]
[Round "9.1"]
[White "Yeoh, Yuan Hui"]
[Black "Yin, Richard"]
[Result "1-0"]
[ECO "C14"]
[WhiteElo "1738"]
[BlackElo "1427"]
[Annotator "NA RC"]
[PlyCount "129"]
[EventDate "2019.12.19"]
[EventType "team-tourn"]
[EventCountry "CHN"]
[SourceTitle "playchess.com"]
[Source "ChessBase"]
[SourceQuality "1"]
[WhiteTeam "Malaysia"]
[BlackTeam "Hong Kong"]
[WhiteTeamCountry "MAS"]
[BlackTeamCountry "HKG"]
[TimeControl "5400+30"]

1. d4 {[%emt 0:00:00]} d5 {[%emt 0:00:00]} 2. Nc3 {[%emt 0:00:00]} Nf6 {[%emt 0:00:00]} 3. Bg5 {[%emt 0:00:00]} e6 {[%emt 0:13:55]} 4. e4 {[%emt 0:00:00]} Be7 {[%emt 0:00:16]} 5. e5 {[%emt 0:00:00]} Nfd7 {[%emt 0:00:39]} 6. Bxe7 {[%emt 0:00:00]} Qxe7 {[%emt 0:00:17]} 7. f4 {[%emt 0:00:03]} a6 {[%emt 0:01:47]} 8. Nf3 {[%emt 0:00:06]} c5 {[%emt 0:01:03]} 9. Bd3 {[%emt 0:00:08]} Nc6 {[%emt 0:01:14]} 10. dxc5 {[%emt 0:00:50]} Nxc5 {[%emt 0:01:07]} 11. O-O {[%emt 0:01:18]} h6 {[%emt 0:00:28]} 12. a3 {[%emt 0:03:26]} O-O {[%emt 0:02:55]} 13. Ne2 {[%emt 0:02:58]} b5 {[%emt 0:05:50]} 14. Ned4 {[%emt 0:02:11]} Nxd4 {[%emt 0:00:26]} 15. Nxd4 {[%emt 0:00:45]} Bd7 {[%emt 0:00:26]} 16. Kh1 {[%emt 0:01:11]} f6 {[%emt 0:05:59]} 17. Nf3 {[%emt 0:11:49]} Be8 {[%emt 0:01:56]} 18. Qe1 {[%emt 0:03:13]} Bh5 {[%emt 0:06:34]} 19. Nd4 {[%emt 0:09:59]} f5 {[%emt 0:09:50]} 20. Qb4 {[%emt 0:03:39]} Qc7 {[%emt 0:02:47]} 21. Qd2 {[%emt 0:04:59]} Rfe8 {[%emt 0:06:48]} 22. b3 {[%emt 0:10:39]} Rac8 {[%emt 0:03:43]} 23. Rfc1 {[%emt 0:02:25]} Qb6 {[%emt 0:03:04]} 24. c3 {[%emt 0:04:04]} Rc7 {[%emt 0:04:43]} 25. a4 {[%emt 0:07:52]} bxa4 {[%emt 0:00:53]} 26. b4 {[%emt 0:00:06]} Nxd3 {[%emt 0:02:02]} 27. Qxd3 {[%emt 0:00:19]} Rec8 {[%emt 0:01:47]} 28. Rxa4 {[%emt 0:06:00]} Rc4 {[%emt 0:00:40]} 29. Raa1 {[%emt 0:01:48]} Qxb4 {[%emt 0:04:56]} 30. Nxe6 {[%emt 0:06:43]} Rxc3 {[%emt 0:01:02]} 31. Rxc3 {[%emt 0:00:08]} Qxc3 {[%emt 0:01:03]} 32. Qxc3 {[%emt 0:00:06]} Rxc3 {[%emt 0:00:02]} 33. h3 {[%emt 0:01:13]} Be2 {[%emt 0:02:11]} 34. Nd4 {[%emt 0:00:15]} Bd3 {[%emt 0:00:18]} 35. Ra5 {[%emt 0:00:26]} Be4 {[%emt 0:01:35]} 36. Rxa6 {[%emt 0:00:43]} Rd3 {[%emt 0:00:21]} 37. e6 {[%emt 0:06:53]} Rxd4 {[%emt 0:02:37]} 38. Ra8+ {[%emt 0:00:08]} Kh7 {[%emt 0:00:03]} 39. e7 {[%emt 0:00:23]} Rd1+ {[%emt 0:00:04]} 40. Kh2 {[%emt 0:00:07]} Rd2 {[%emt 0:00:40]} 41. Kg1 {[%emt 0:02:46]} d4 {[%emt 0:02:21]} 42. e8=Q {[%emt 0:01:25]} Rxg2+ {[%emt 0:00:00]} 43. Kf1 {[%emt 0:00:05]} Bxa8 {[%emt 0:00:00]} 44. Qxa8 {[%emt 0:00:07]} Rg3 {[%emt 0:00:00]} 45. Qd5 {[%emt 0:00:53]} g6 {[%emt 0:00:25]} 46. Qd7+ {[%emt 0:01:01]} Kg8 {[%emt 0:00:18]} 47. Qd8+ {[%emt 0:00:36]} Kh7 {[%emt 0:00:07]} 48. Qe7+ {[%emt 0:00:16]} Kg8 {[%emt 0:00:43]} 49. Qh4 {[%emt 0:01:06]} Re3 {[%emt 0:01:43]} 50. Qxh6 {[%emt 0:00:41]} Re6 {[%emt 0:00:24]} 51. Qg5 {[%emt 0:00:15]} Kh7 {[%emt 0:01:07]} 52. Qh4+ {[%emt 0:00:15]} Kg7 {[%emt 0:00:05]} 53. Qd8 {[%emt 0:00:48]} Re4 {[%emt 0:01:03]} 54. Qd6 {[%emt 0:00:37]} Kh7 {[%emt 0:00:02]} 55. Kf2 {[%emt 0:00:22]} Kg7 {[%emt 0:00:53]} 56. Kg3 {[%emt 0:01:11]} Re3+ {[%emt 0:00:46]} 57. Kh4 {[%emt 0:00:58]} Kf7 {[%emt 0:02:11]} 58. Qxd4 {[%emt 0:00:09]} Re4 {[%emt 0:00:02]} 59. Qd6 {[%emt 0:00:19]} Re6 {[%emt 0:00:18]} 60. Qd7+ {[%emt 0:01:02]} Kf6 {[%emt 0:00:33]} 61. Qd4+ {[%emt 0:00:09]} Ke7 {[%emt 0:00:47]} 62. Kg5 {[%emt 0:00:04]} Kf7 {[%emt 0:00:14]} 63. Qd7+ {[%emt 0:00:10]} Re7 {[%emt 0:00:05]} 64. Qd5+ {[%emt 0:00:16]} Kg7 {[%emt 0:00:23]} 65. Qd6 {[%emt 0:00:09]} 1-0

[Event "2nd Asian Nations Team Cup U14 2019"]
[Site "Shenzhen"]
[Date "2019.12.25"]
[Round "9.2"]
[White "Lam, Chun Yung Samuel"]
[Black "Foo, Jiu Yarng Clarance"]
[Result "0-1"]
[ECO "A07"]
[WhiteElo "1288"]
[BlackElo "1654"]
[Annotator "NA RC"]
[PlyCount "70"]
[EventDate "2019.12.19"]
[EventType "team-tourn"]
[EventCountry "CHN"]
[SourceTitle "playchess.com"]
[Source "ChessBase"]
[SourceQuality "1"]
[WhiteTeam "Hong Kong"]
[BlackTeam "Malaysia"]
[WhiteTeamCountry "HKG"]
[BlackTeamCountry "MAS"]
[TimeControl "5400+30"]

1. Nf3 {[%emt 0:00:00]} d5 {[%emt 0:00:04]} 2. g3 {[%emt 0:00:00]} Nf6 {[%emt 0:02:13]} 3. Bg2 {[%emt 0:00:00]} Bf5 {[%emt 0:01:33]} 4. O-O {[%emt 0:00:13]} e6 {[%emt 0:00:36]} 5. d3 {[%emt 0:00:06]} Be7 {[%emt 0:00:18]} 6. Nbd2 {[%emt 0:00:06]} O-O {[%emt 0:00:30]} 7. Qe1 {[%emt 0:00:08]} c6 {[%emt 0:01:06]} 8. e4 {[%emt 0:00:11]} dxe4 {[%emt 0:00:45]} 9. dxe4 {[%emt 0:00:07]} Bg6 {[%emt 0:00:10]} 10. Qe2 {[%emt 0:00:22]} Nbd7 {[%emt 0:00:27]} 11. e5 {[%emt 0:26:03]} Nd5 {[%emt 0:00:40]} 12. Ne4 {[%emt 0:00:28]} Qc7 {[%emt 0:02:15]} 13. Neg5 {[%emt 0:02:46]} h6 {[%emt 0:00:45]} 14. Nh3 {[%emt 0:00:15]} Nb4 {[%emt 0:02:49]} 15. Nf4 {[%emt 0:01:08]} Bh7 {[%emt 0:01:04]} 16. Nd3 {[%emt 0:02:18]} Nxd3 {[%emt 0:00:47]} 17. cxd3 {[%emt 0:00:09]} Rfd8 {[%emt 0:04:24]} 18. d4 {[%emt 0:08:46]} Nb6 {[%emt 0:01:11]} 19. Be3 {[%emt 0:01:26]} Nd5 {[%emt 0:00:50]} 20. Rfd1 {[%emt 0:00:24]} Rac8 {[%emt 0:00:28]} 21. Nd2 {[%emt 0:00:54]} b6 {[%emt 0:01:44]} 22. Qg4 {[%emt 0:05:00]} Bf5 {[%emt 0:07:33]} 23. Qh5 {[%emt 0:01:07]} c5 {[%emt 0:05:52]} 24. Rac1 {[%emt 0:01:17]} Qb8 {[%emt 0:02:44]} 25. Bxd5 {[%emt 0:02:29]} Rxd5 {[%emt 0:00:25]} 26. dxc5 {[%emt 0:00:36]} Bxc5 {[%emt 0:00:33]} 27. Bxc5 {[%emt 0:00:13]} Rdxc5 {[%emt 0:05:54]} 28. Rxc5 {[%emt 0:04:38]} Rxc5 {[%emt 0:00:21]} 29. f4 {[%emt 0:00:05]} Rc2 {[%emt 0:02:19]} 30. Nb3 {[%emt 0:01:03]} Qc7 {[%emt 0:10:54]} 31. Nd4 {[%emt 0:01:50]} Rxb2 {[%emt 0:00:40]} 32. Nxf5 {[%emt 0:00:43]} exf5 {[%emt 0:00:44]} 33. Qxf5 {[%emt 0:00:21]} Qc5+ {[%emt 0:00:11]} 34. Kh1 {[%emt 0:00:06]} Qc6+ {[%emt 0:00:07]} 35. Kg1 {[%emt 0:02:16]} Qg2# {[%emt 0:00:07]} 0-1

[Event "2nd Asian Nations Team Cup U14 2019"]
[Site "Shenzhen"]
[Date "2019.12.25"]
[Round "9.3"]
[White "Lee, Ryan"]
[Black "Li, Yucheng Robinson"]
[Result "1/2-1/2"]
[ECO "D36"]
[WhiteElo "1615"]
[BlackElo "1185"]
[Annotator "NA RC"]
[PlyCount "168"]
[EventDate "2019.12.19"]
[EventType "team-tourn"]
[EventCountry "CHN"]
[SourceTitle "playchess.com"]
[Source "ChessBase"]
[SourceQuality "1"]
[WhiteTeam "Malaysia"]
[BlackTeam "Hong Kong"]
[WhiteTeamCountry "MAS"]
[BlackTeamCountry "HKG"]
[TimeControl "5400+30"]

1. d4 {[%emt 0:00:00]} d5 {[%emt 0:00:00]} 2. c4 {[%emt 0:00:00]} e6 {[%emt 0:00:00]} 3. Nc3 {[%emt 0:00:00]} Nf6 {[%emt 0:00:00]} 4. cxd5 {[%emt 0:00:00]} exd5 {[%emt 0:00:00]} 5. Bg5 {[%emt 0:00:00]} Be7 {[%emt 0:00:16]} 6. e3 {[%emt 0:00:00]} c6 {[%emt 0:00:06]} 7. Bd3 {[%emt 0:00:00]} O-O {[%emt 0:00:34]} 8. Qc2 {[%emt 0:00:02]} h6 {[%emt 0:01:01]} 9. Bh4 {[%emt 0:00:08]} Nbd7 {[%emt 0:01:40]} 10. Nge2 {[%emt 0:00:35]} b5 {[%emt 0:00:51]} 11. O-O {[%emt 0:02:05]} Bb7 {[%emt 0:01:51]} 12. f3 {[%emt 0:03:39]} a6 {[%emt 0:02:18]} 13. e4 {[%emt 0:02:09]} dxe4 {[%emt 0:00:00]} 14. fxe4 {[%emt 0:00:22]} c5 {[%emt 0:06:28]} 15. dxc5 {[%emt 0:06:00]} Nxc5 {[%emt 0:00:00]} 16. Bxf6 {[%emt 0:01:14]} Bxf6 {[%emt 0:00:00]} 17. Rad1 {[%emt 0:00:58]} Qb6 {[%emt 0:00:00]} 18. Kh1 {[%emt 0:01:00]} Rac8 {[%emt 0:00:00]} 19. Qb1 {[%emt 0:03:35]} Nxd3 {[%emt 0:00:00]} 20. Qxd3 {[%emt 0:03:06]} Rfd8 {[%emt 0:01:54]} 21. Qg3 {[%emt 0:05:16]} Bxc3 {[%emt 0:00:00]} 22. Nxc3 {[%emt 0:00:42]} Rxd1 {[%emt 0:00:00]} 23. Rxd1 {[%emt 0:00:22]} Qe6 {[%emt 0:00:42]} 24. Qd3 {[%emt 0:08:49]} Qc4 {[%emt 0:01:45]} 25. h3 {[%emt 0:05:36]} b4 {[%emt 0:01:34]} 26. Nd5 {[%emt 0:01:47]} Qxd3 {[%emt 0:00:24]} 27. Rxd3 {[%emt 0:00:09]} Rc4 {[%emt 0:00:11]} 28. e5 {[%emt 0:01:08]} Re4 {[%emt 0:01:09]} 29. Ne7+ {[%emt 0:09:33]} Kh7 {[%emt 0:00:16]} 30. Rd7 {[%emt 0:01:26]} Ba8 {[%emt 0:00:08]} 31. Rd8 {[%emt 0:01:58]} Rxe5 {[%emt 0:00:26]} 32. Rxa8 {[%emt 0:00:25]} Rxe7 {[%emt 0:00:09]} 33. Rxa6 {[%emt 0:00:03]} Re2 {[%emt 0:00:21]} 34. b3 {[%emt 0:00:19]} f6 {[%emt 0:00:26]} 35. Ra4 {[%emt 0:00:41]} Kg6 {[%emt 0:00:10]} 36. Rxb4 {[%emt 0:00:16]} Rxa2 {[%emt 0:00:09]} 37. Kh2 {[%emt 0:00:33]} Kf5 {[%emt 0:00:11]} 38. Kg3 {[%emt 0:00:24]} g5 {[%emt 0:00:08]} 39. Kf3 {[%emt 0:00:36]} h5 {[%emt 0:01:26]} 40. Rb5+ {[%emt 0:01:26]} Ke6 {[%emt 0:00:36]} 41. g4 {[%emt 0:00:31]} hxg4+ {[%emt 0:00:36]} 42. hxg4 {[%emt 0:01:22]} Rc2 {[%emt 0:00:00]} 43. Rb8 {[%emt 0:02:28]} Ke5 {[%emt 0:00:26]} 44. Rb5+ {[%emt 0:00:39]} Kd4 {[%emt 0:01:31]} 45. Rb6 {[%emt 0:01:24]} Rc3+ {[%emt 0:00:14]} 46. Kf2 {[%emt 0:00:25]} Ke5 {[%emt 0:01:43]} 47. Ke2 {[%emt 0:07:12]} Kf4 {[%emt 0:00:17]} 48. Rb4+ {[%emt 0:00:27]} Ke5 {[%emt 0:00:20]} 49. Kd2 {[%emt 0:00:46]} Rc5 {[%emt 0:09:46]} 50. Ra4 {[%emt 0:15:08]} f5 {[%emt 0:00:00]} 51. gxf5 {[%emt 0:01:39]} Kxf5 {[%emt 0:00:00]} 52. b4 {[%emt 0:01:07]} Rc8 {[%emt 0:00:00]} 53. b5 {[%emt 0:01:16]} Ke5 {[%emt 0:00:00]} 54. Rg4 {[%emt 0:01:12]} Rg8 {[%emt 0:00:00]} 55. Kc3 {[%emt 0:01:25]} Kd6 {[%emt 0:00:00]} 56. Kb4 {[%emt 0:00:31]} Kc7 {[%emt 0:00:00]} 57. Kc5 {[%emt 0:00:34]} Rg6 {[%emt 0:00:00]} 58. Re4 {[%emt 0:01:21]} Rg7 {[%emt 0:00:00]} 59. Ra4 {[%emt 0:00:15]} Kb8 {[%emt 0:00:00]} 60. Rg4 {[%emt 0:02:59]} Kb7 {[%emt 0:02:55]} 61. Ra4 {[%emt 0:00:41]} Rc7+ {[%emt 0:00:21]} 62. Kb4 {[%emt 0:03:28]} Rc1 {[%emt 0:00:00]} 63. Ka5 {[%emt 0:01:19]} Rb1 {[%emt 0:00:00]} 64. Rg4 {[%emt 0:00:34]} Ra1+ {[%emt 0:00:00]} 65. Kb4 {[%emt 0:00:08]} Rb1+ {[%emt 0:00:00]} 66. Kc4 {[%emt 0:00:10]} Rc1+ {[%emt 0:00:00]} 67. Kd4 {[%emt 0:00:36]} Kb6 {[%emt 0:00:00]} 68. Rxg5 {[%emt 0:00:27]} Rb1 {[%emt 0:00:00]} 69. Kc4 {[%emt 0:01:48]} Rc1+ {[%emt 0:01:41]} 70. Kd4 {[%emt 0:03:56]} Rb1 {[%emt 0:00:00]} 71. Kc4 {[%emt 0:00:06]} Rc1+ {[%emt 0:00:00]} 72. Kb4 {[%emt 0:00:12]} Rb1+ {[%emt 0:00:08]} 73. Ka4 {[%emt 0:00:09]} Ra1+ {[%emt 0:00:00]} 74. Kb3 {[%emt 0:00:13]} Rb1+ {[%emt 0:00:00]} 75. Ka4 {[%emt 0:00:06]} Ra1+ {[%emt 0:00:00]} 76. Kb4 {[%emt 0:00:06]} Rb1+ {[%emt 0:00:00]} 77. Kc4 {[%emt 0:03:31]} Rc1+ {[%emt 0:00:00]} 78. Kd4 {[%emt 0:00:30]} Rb1 {[%emt 0:00:00]} 79. Rg8 {[%emt 0:01:26]} Rxb5 {[%emt 0:00:00]} 80. Kc4 {[%emt 0:00:06]} Rc5+ {[%emt 0:00:00]} 81. Kd4 {[%emt 0:00:11]} Rh5 {[%emt 0:00:00]} 82. Rg6+ {[%emt 0:00:12]} Kc7 {[%emt 0:00:00]} 83. Rg7+ {[%emt 0:00:10]} Kd6 {[%emt 0:00:00]} 84. Ra7 {[%emt 0:00:09]} Kc6 {[%emt 0:00:00] Kd5+} 1/2-1/2